fUSD/lending_fUSD_20240612
["ID","MTS","AMOUNT","RATE_DAILY","PERIOD"]
[329298980,1718224242055,-525.40490644,0.00029998,2]
[329298981,1718224242078,-3064.8950057,0.00029998,2]
[329298982,1718224242090,-270.30707103,0.00029998,2]
[329298983,1718224242108,-229.35922986,0.00029998,2]
[329298984,1718224242119,-623.91084839,0.00029998,2]
[329298985,1718224242138,-155.36916986,0.00029998,2]
[329298986,1718224242150,-200.31301751,0.00029998,2]
[329298987,1718224242162,-220.89856811,0.00029998,2]
[329298988,1718224242173,-626.25690855,0.00029998,2]
[329298989,1718224242192,-538.60151429,0.00029998,2]
[329298990,1718224242206,-2350.65016854,0.00029998,2]
[329298991,1718224242218,-283.07027386,0.00029998,2]
[329298992,1718224242263,-155.41214259,0.00029998,2]
[329298993,1718224242274,-201.09989765,0.00029998,2]
[329298994,1718224242288,-284.31777379,0.00029998,2]
[329298995,1718224242302,-156.12777516,0.00029998,2]
[329298996,1718224242317,-155.45314431,0.00029998,2]
[329298997,1718224242328,-189.34506203,0.00029998,2]
[329298998,1718224242340,-157.55504425,0.00029998,2]
[329298999,1718224242357,-155.48983317,0.00029998,2]
[329299000,1718224242370,-193.56420238,0.00029998,2]
[329299001,1718224242386,-453.58696588,0.00029998,2]
[329299002,1718224242423,-155.0,0.00029998,2]
[329299003,1718224242465,-158.03447952,0.00029998,2]
[329299004,1718224242479,-155.0,0.00029998,2]
[329299005,1718224242500,-157.0308117,0.00029998,2]
[329299006,1718224242533,-156.24883765,0.00029998,2]
[329299007,1718224242557,-8323.77725992,0.00029998,2]
[329299008,1718224242579,-221.41495237,0.00029998,2]
[329299009,1718224242606,-156.19128802,0.00029998,2]
[329299010,1718224242617,-155.54684316,0.00029998,2]
[329299011,1718224242641,-155.0,0.00029998,2]
[329299012,1718224242655,-155.0,0.00029998,2]
[329299013,1718224242667,-155.45078624,0.00029998,2]
[329299014,1718224242680,-217.36329428,0.00029998,2]
[329299015,1718224242698,-156.84450477,0.00029998,2]
[329299016,1718224242721,-1052.5997462,0.00029998,2]
[329299017,1718224242737,-200.03186853,0.00029998,2]
[329299018,1718224242748,-296.73266768,0.00029998,2]
[329299019,1718224242763,-198.59722196,0.00029998,2]
[329299020,1718224242797,-374.34572749,0.00029998,2]
[329299021,1718224242810,-211.38401873,0.00029998,2]
[329299022,1718224242839,-1392.58693338,0.00029998,2]
[329299023,1718224242849,-161.96047196,0.00029998,2]
[329299024,1718224242860,-157.44296407,0.00029998,2]
[329299025,1718224242870,-201.12551533,0.00029998,2]
[329299026,1718224242881,-155.0,0.00029998,2]
[329299027,1718224242892,-176.60614506,0.00029998,2]
[329299028,1718224242916,-210.70788545,0.00029998,2]
[329299029,1718224242944,-155.0,0.00029998,2]
[329299030,1718224242957,-957.37362739,0.00029998,2]
[329299031,1718224242989,-162.78509319,0.00029998,2]
[329299032,1718224243011,-155.0,0.00029998,2]
[329299033,1718224243040,-239.88319152,0.00029998,2]
[329299034,1718224243069,-4291.83751585,0.00029998,2]
[329299035,1718224243079,-235.59464842,0.00029998,2]
[329299036,1718224243103,-460.96071792,0.00029998,10]
[329299037,1718224243120,-651.73707461,0.00029998,2]
[329299038,1718224243135,-1618.85939652,0.00029998,2]
[329299039,1718224243146,-182.46062707,0.00029998,2]
[329299040,1718224243162,-307.61535121,0.00029998,2]
[329299041,1718224243179,-189.35448094,0.00029998,2]
[329299042,1718224243190,-3018.65921685,0.00029998,2]
[329299043,1718224243207,-155.97806679,0.00029998,3]
[329299044,1718224243220,-156.4486,0.00029998,2]
[329299045,1718224243251,-156.49485314,0.00029998,2]
[329299046,1718224243287,-1236.28417491,0.00029998,2]
[329299047,1718224243310,-210.09854251,0.00029998,2]
[329299049,1718224243322,-238.21449077,0.00029998,2]
[329299050,1718224243334,-645.83379313,0.00029998,2]
[329299051,1718224243345,-50000.0,0.00029998,2]
[329299052,1718224243355,-229.94558612,0.00029998,90]
[329299053,1718224243367,-1248.31846585,0.00029998,2]
[329299054,1718224243385,-160.78646615,0.00029998,2]
[329299055,1718224243403,-2485.09344287,0.00029998,2]
[329299056,1718224243423,-572.02514398,0.00029998,2]
[329299057,1718224243487,-155.0,0.00029998,2]
[329299058,1718224243498,-420.53167918,0.00029998,30]
[329299059,1718224243524,-327.09364323,0.00029998,10]
[329299060,1718224243541,-248.74314656,0.00029998,2]
[329299061,1718224243558,-634.13477862,0.00029998,2]
[329299062,1718224243571,-1103.22560397,0.00029999,30]
[329299063,1718224243584,-500.0,0.00029999,2]
[329299064,1718224243595,-504.90656932,0.00029999,2]
[329299065,1718224243607,-1000.0,0.00029999,2]
[329299066,1718224243620,-1000.0,0.00029999,2]
[329299067,1718224243635,-300.0,0.00029999,10]
[329299068,1718224243650,-300.0,0.00029999,10]
[329299069,1718224243662,-300.0,0.00029999,10]
[329299070,1718224243678,-300.0,0.00029999,10]
[329299071,1718224243700,-300.0,0.00029999,10]
[329299072,1718224243713,-300.0,0.00029999,10]
[329299073,1718224243746,-300.0,0.00029999,10]
[329299074,1718224243757,-71.36267402,0.00029999,10]
[329299075,1718224243888,-283.21789669,0.00029999,10]
[329299076,1718224243902,-150.0,0.00029999,10]
[329299077,1718224243916,-150.0,0.00029999,10]
[329299078,1718224243938,-150.0,0.00029999,2]
[329299079,1718224243972,-150.0,0.00029999,7]
[329299080,1718224243995,-163.22180556,0.0003,25]
[329299081,1718224244005,-291.82982528,0.0003,30]
[329299082,1718224244017,-1446.04059712,0.0003,2]
[329299083,1718224244029,-80775.86402577,0.0003,13]
[329299085,1718224244053,-857.74670121,0.0003,13]
[329299086,1718224244082,-9511.23617097,0.0003,13]
[329299087,1718224244489,-155.0,0.00017111,2]
[329299088,1718224244520,-155.0,0.00017111,2]
[329299089,1718224244540,-500.0,0.00028998,2]
[329299090,1718224244562,-500.0,0.00028999,2]
[329299091,1718224244577,-1900.81251125,0.00029097,2]
[329299092,1718224244806,-311.84999818,0.00029097,2]
[329299093,1718224244852,-1342.56128883,0.00029097,2]
[329299094,1718224244874,-617.96965288,0.00029097,2]
[329299095,1718224244885,-500.0,0.00029136,2]
[329299096,1718224244896,-500.0,0.00029273,2]
[329299097,1718224244907,-500.0,0.0002941,2]
[329299098,1718224244933,-500.0,0.00029547,2]
[329299099,1718224244955,-500.0,0.00029684,2]
[329299100,1718224244966,-500.0,0.00029821,2]
[329299101,1718224244979,-500.0,0.00029958,2]
[329299102,1718224244990,-500.0,0.00029997,2]
[329299103,1718224245018,-500.0,0.00029997,2]
[329299104,1718224245028,-500.0,0.00029999,2]
[329299105,1718224245038,-500.0,0.00029999,2]
[329299106,1718224245050,-500.0,0.00029999,2]
[329299107,1718224245074,-396.63,0.00029999,2]
[329299108,1718224245085,-394.0,0.00029999,5]
[329299109,1718224245095,-11458.57266654,0.0003,13]
[329299110,1718224245115,-542.00088822,0.0003,13]
[329299111,1718224245151,-304.37695136,0.0003,13]
[329299112,1718224245178,-2051.53031993,0.0003,13]
[329299113,1718224245261,-482.00237009,0.00029998,2]
[329299114,1718224245284,-363.35571185,0.00029998,2]
[329299115,1718224245321,-2412.80898785,0.0003,13]
[329299116,1718224245433,-340.52076322,0.00029998,2]
[329299117,1718224245445,-155.0,0.00029998,2]
[329299118,1718224245465,-33486.17390011,0.0003,13]
[329299119,1718224246002,-664.21319688,0.0003,13]
[329299120,1718224246029,-106729.56749092,0.0003,13]
[329299171,1718224247170,-168.14301994,0.00029998,2]
[329299173,1718224247191,-219.99215239,0.00029998,2]
[329299175,1718224247203,-664.01344072,0.00029998,2]
[329299177,1718224247276,-232.69289564,0.00029998,2]
[329299180,1718224247292,-203.8790396,0.00029998,2]
[329299182,1718224247304,-9581.65107631,0.0003,13]
[329299207,1718224247622,-157.58092106,0.00029998,2]
[329299208,1718224247634,-863.25539537,0.0003,13]
[329299211,1718224247650,-353.68141749,0.0003,13]
[329299213,1718224247663,-5442.5200103,0.0003,13]
[329299215,1718224247676,-6830.18951547,0.0003,13]
[329299217,1718224247690,-1054.34308783,0.0003,13]
[329299246,1718224248112,-559.84545263,0.00029998,2]
[329299248,1718224248127,-363.54203449,0.00029998,2]
[329299250,1718224248141,-2304.84336074,0.00029999,2]
[329299252,1718224248155,-1830.06188376,0.00029999,2]
[329299254,1718224248171,-1147.14349306,0.0003,13]
[329299462,1718224251808,-204.63256981,0.00026998,2]
[329299464,1718224251819,-165.89879645,0.00029998,2]
[329299466,1718224251830,-156.84508011,0.00029998,2]
[329299468,1718224251842,-162.80706654,0.00029998,2]
[329299470,1718224251855,-1284.64503054,0.00029998,2]
[329299472,1718224251871,-405.99205359,0.00029998,2]
[329299474,1718224251887,-200.77152762,0.00029998,2]
[329299475,1718224251901,-155.0,0.00029998,2]
[329299477,1718224251913,-481.84205755,0.00029998,2]
[329299479,1718224251930,-155.16730935,0.00029998,2]
[329299481,1718224251944,-155.0,0.00029998,2]
[329299483,1718224251961,-286.53333514,0.00029998,2]
[329299485,1718224251976,-266.98501545,0.00029998,2]
[329299487,1718224251990,-195.72005181,0.00029998,2]
[329299488,1718224252003,-300.0,0.00029999,10]
[329299490,1718224252017,-217.5827999,0.00029999,10]
[329299493,1718224252037,-417.74492286,0.00029998,2]
[329299550,1718224252880,-500.0,0.00028998,2]
[329299552,1718224252897,-127.91041765,0.00029998,2]
[329299554,1718224252920,-275.29994222,0.00029998,2]
[329299556,1718224252946,-263.76706903,0.00029998,2]
[329299558,1718224252967,-82.4172001,0.00029999,10]
[329299560,1718224252983,-48.70607613,0.00029999,10]
[329299563,1718224253007,-251.29392387,0.00029999,10]
[329299565,1718224253026,-199.59939838,0.00029999,10]
[329299567,1718224253050,-100.40060162,0.00029999,10]
[329299569,1718224253064,-171.92405886,0.0003,13]
[329299942,1718224424314,45300.94,0.00014,2]
[329299943,1718224424400,146599.50085476,0.00014,2]
[329299955,1718224623778,6346.01194361,0.0001399,2]
[329299968,1718225117010,-4231.04,0.00014896,2]
[329299969,1718225117042,-646.04365935,0.00014898,2]
[329299970,1718225117077,-150.0,0.00014899,2]
[329299971,1718225117109,-155.0,0.00014899,2]
[329299972,1718225117147,-277.887,0.000149,2]
[329299973,1718225117180,-8212.6893,0.000149,2]
[329299974,1718225117211,-150.0,0.00014986,2]
[329299975,1718225117247,-13504.3976117,0.0001499,2]
[329299976,1718225117284,-9521.0154245,0.00014999,2]
[329299977,1718225117320,-553757.01299377,0.00015,2]
[329299987,1718225432475,-527.09,0.00019178,2]
[329299988,1718225432487,-500.0,0.00019178,2]
[329299989,1718225432498,-500.0,0.00019178,2]
[329299990,1718225432510,-198.72,0.00019178,2]
[329299991,1718225432521,-22.67268088,0.00019178,2]
[329299992,1718225432667,-477.32731912,0.00019178,2]
[329299993,1718225432697,-628.93985252,0.00019178,2]
[329299994,1718225432713,-500.0,0.00019178,2]
[329299995,1718225432726,-500.0,0.00019178,2]
[329299996,1718225432739,-500.0,0.00019178,2]
[329299997,1718225432751,-519.83758261,0.00019178,2]
[329299998,1718225432765,-500.0,0.00019178,2]
[329299999,1718225432779,-507.09932057,0.00019178,2]
[329300000,1718225432793,-500.0,0.00019178,2]
[329300001,1718225432805,-500.0,0.00019178,2]
[329300002,1718225432818,-558.29,0.00019178,2]
[329300003,1718225432831,-500.0,0.00019178,2]
[329300004,1718225432844,-500.0,0.00019178,2]
[329300005,1718225432856,-545.76,0.00019178,2]
[329300006,1718225432869,-507.88937901,0.00019178,2]
[329300007,1718225432882,-518.45500526,0.00019178,2]
[329300008,1718225432895,-506.35,0.00019178,2]
[329300009,1718225432907,-500.0,0.00019178,2]
[329300010,1718225432919,-566.75,0.00019178,2]
[329300011,1718225432931,-500.0,0.00019178,2]
[329300012,1718225432944,-510.87294408,0.00019178,2]
[329300013,1718225432956,-500.0,0.00019178,2]
[329300014,1718225432968,-500.0,0.00019178,2]
[329300015,1718225432981,-500.0,0.00019178,2]
[329300016,1718225432994,-500.0,0.00019178,2]
[329300017,1718225433009,-500.0,0.00019178,2]
[329300018,1718225433023,-500.0,0.00019178,2]
[329300019,1718225433039,-500.0,0.00019178,2]
[329300020,1718225433053,-500.0,0.00019178,2]
[329300021,1718225433066,-500.0,0.00019178,2]
[329300022,1718225433081,-576.90139725,0.00019178,2]
[329300023,1718225433096,-510.57167332,0.00019178,2]
[329300024,1718225433110,-500.0,0.00019178,2]
[329300025,1718225433124,-500.0,0.00019178,2]
[329300026,1718225433136,-500.0,0.00019178,2]
[329300027,1718225433148,-504.28907573,0.00019178,2]
[329300028,1718225433160,-500.0,0.00019178,2]
[329300029,1718225433173,-500.0,0.00019178,2]
[329300030,1718225433184,-500.0,0.00019178,2]
[329300031,1718225433196,-500.0,0.00019178,2]
[329300032,1718225433209,-500.0,0.00019178,2]
[329300033,1718225433223,-500.0,0.00019178,2]
[329300034,1718225433235,-520.11620285,0.00019178,2]
[329300035,1718225433247,-500.0,0.00019178,2]
[329300036,1718225433259,-512.24153934,0.00019178,2]
[329300037,1718225433272,-505.17568495,0.00019178,2]
[329300038,1718225433286,-500.0,0.00019178,2]
[329300039,1718225433299,-500.0,0.00019178,2]
[329300040,1718225433311,-500.0,0.00019178,2]
[329300041,1718225433324,-594.80687378,0.00019178,2]
[329300042,1718225433341,-500.0,0.00019178,2]
[329300043,1718225433355,-500.0,0.00019178,2]
[329300044,1718225433366,-500.0,0.00019178,2]
[329300045,1718225433379,-500.0,0.00019178,2]
[329300046,1718225433390,-500.0,0.00019178,2]
[329300047,1718225433400,-500.0,0.00019178,2]
[329300048,1718225433411,-500.0,0.00019178,2]
[329300049,1718225433426,-500.0,0.00019178,2]
[329300050,1718225433441,-500.0,0.00019178,2]
[329300051,1718225433461,-500.0,0.00019178,2]
[329300052,1718225433473,-511.2877708,0.00019178,2]
[329300053,1718225433485,-156.64502304,0.00019178,2]
[329300054,1718225433498,-744.19,0.00019178,2]
[329300055,1718225433516,-500.0,0.00019315,2]
[329300056,1718225433530,-249.07974098,0.00019315,2]
[329300057,1718225433545,-500.0,0.00019315,2]
[329300058,1718225433569,-744.19,0.00019315,2]
[329300059,1718225433585,-288.96,0.00019452,2]
[329300060,1718225433601,-500.0,0.00019452,2]
[329300061,1718225433614,-744.19,0.00019452,2]
[329300062,1718225433627,-744.19,0.00019589,2]
[329300063,1718225433640,-744.19,0.00019726,2]
[329300064,1718225433652,-744.19,0.00019863,2]
[329300065,1718225433666,-744.19,0.0002,2]
[329300066,1718225433704,-744.19,0.00020136,2]
[329300067,1718225433717,-744.19,0.00020273,2]
[329300068,1718225433729,-744.19,0.0002041,2]
[329300069,1718225433742,-744.19,0.00020547,2]
[329300070,1718225433755,-744.19,0.00020684,2]
[329300071,1718225433768,-744.19,0.00020821,2]
[329300072,1718225433781,-744.19,0.00020958,2]
[329300073,1718225433794,-744.19,0.00021095,2]
[329300074,1718225433806,-744.19,0.00021232,2]
[329300075,1718225433819,-744.19,0.00021369,2]
[329300076,1718225433830,-744.19,0.00021506,2]
[329300077,1718225433841,-744.19,0.00021643,2]
[329300078,1718225433852,-744.19,0.0002178,2]
[329300079,1718225433864,-744.19,0.00021917,2]
[329300080,1718225433877,-744.19,0.00022054,2]
[329300081,1718225433889,-744.19,0.00022191,2]
[329300082,1718225433905,-744.21070416,0.00022328,2]
[329300083,1718225433919,-299.76,0.0002313,2]
[329300084,1718225433932,-3189.0,0.00024,2]
[329300085,1718225433944,-154.6686237,0.00024074,2]
[329300086,1718225433957,-154.70928417,0.00024094,2]
[329300087,1718225433970,-335.11,0.00024384,2]
[329300088,1718225433984,-154.5,0.00024384,2]
[329300089,1718225433996,-629.0,0.0002448,4]
[329300090,1718225434007,-151.79644714,0.0002458,2]
[329300091,1718225434019,-152.71711912,0.00024751,2]
[329300092,1718225434033,-162.22943552,0.00024784,2]
[329300093,1718225434047,-154.70928417,0.00025106,2]
[329300094,1718225434058,-250.0,0.00025107,2]
[329300095,1718225434071,-960.86,0.00025181,2]
[329300096,1718225434084,-206.58,0.0002521,30]
[329300097,1718225434096,-250.0,0.00025283,2]
[329300098,1718225434110,-167.79,0.00025344,2]
[329300099,1718225434124,-299.76,0.00025394,2]
[329300100,1718225434138,-172.18,0.00025445,2]
[329300101,1718225434150,-197.92,0.00025541,2]
[329300102,1718225434163,-152.84905972,0.00025659,2]
[329300103,1718225434174,-154.70928417,0.00025707,2]
[329300104,1718225434185,-172.18,0.0002571,2]
[329300105,1718225434197,-160.6958182,0.00025788,2]
[329300106,1718225434208,-154.6686237,0.00025894,2]
[329300107,1718225434219,-172.18,0.00025976,2]
[329300108,1718225434231,-200.0,0.00025997,2]
[329300109,1718225434242,-500.0,0.00026027,2]
[329300110,1718225434253,-266.91919628,0.00026027,2]
[329300111,1718225434265,-151.79644714,0.00026081,2]
[329300112,1718225434276,-172.18,0.00026241,2]
[329300113,1718225434288,-164.1885196,0.0002632,2]
[329300114,1718225434311,-250.0,0.00026329,2]
[329300115,1718225434336,-21640.23,0.00026344,2]
[329300116,1718225434360,-150.0,0.00026398,2]
[329300117,1718225434382,-172.18,0.00026506,2]
[329300118,1718225434398,-4351.26,0.00026527,2]
[329300119,1718225434414,-172.18,0.00026771,2]
[329300120,1718225434442,-152.30070605,0.00026871,2]
[329300121,1718225434458,-17804.38443806,0.00027,2]
[329300122,1718225434471,-2013.69130441,0.000272,2]
[329300123,1718225434484,-500.0,0.00027252,2]
[329300124,1718225434506,-19339.7998,0.00027352,2]
[329300125,1718225434518,-150.0,0.00027397,2]
[329300126,1718225434530,-2015.8,0.00027397,2]
[329300127,1718225434546,-154.70928417,0.00027489,2]
[329300128,1718225434562,-162.22943554,0.00027516,2]
[329300129,1718225434577,-299.76,0.00027658,2]
[329300130,1718225434594,-154.70928417,0.00027699,2]
[329300131,1718225434612,-201.594972,0.000278,2]
[329300132,1718225434625,-224.98486477,0.00028,2]
[329300133,1718225434636,-154.70928417,0.00028023,2]
[329300134,1718225434647,-150.0,0.00028118,2]
[329300135,1718225434658,-154.70928417,0.00028127,2]
[329300136,1718225434682,-960.86,0.00028329,2]
[329300137,1718225434713,-268.6,0.0002853,2]
[329300138,1718225434727,-150.0,0.00028839,2]
[329300139,1718225434743,-685.8544,0.00028898,2]
[329300140,1718225434764,-280.97274363,0.000289,2]
[329300141,1718225434778,-4909.12850689,0.00028908,2]
[329300142,1718225434791,-500.0,0.00028998,2]
[329300143,1718225434804,-500.0,0.00028998,2]
[329300144,1718225434828,-575.32,0.00028998,2]
[329300145,1718225434848,-500.0,0.00028998,2]
[329300146,1718225434870,-500.0,0.00028998,2]
[329300147,1718225434884,-500.0,0.00028998,2]
[329300148,1718225434895,-500.0,0.00028998,2]
[329300149,1718225434907,-503.18708993,0.00028998,2]
[329300150,1718225434919,-500.0,0.00028998,2]
[329300151,1718225434931,-500.0,0.00028998,2]
[329300152,1718225434943,-500.0,0.00028998,2]
[329300153,1718225434954,-576.65,0.00028998,2]
[329300154,1718225434966,-443.78714873,0.00028999,2]
[329300155,1718225434981,-18260.73262574,0.00029,2]
[329300156,1718225434995,-4814.294647,0.00029,5]
[329300157,1718225435009,-4173.19345114,0.00029,2]
[329300158,1718225435021,-714.70400096,0.00029,2]
[329300159,1718225435037,-1489.8087426,0.00029,2]
[329300160,1718225435051,-280.97274355,0.00029011,15]
[329300161,1718225435066,-4909.12850681,0.00029018,15]
[329300162,1718225435078,-280.97274355,0.00029122,15]
[329300163,1718225435093,-4909.12850681,0.00029128,15]
[329300164,1718225435105,-500.0,0.00029135,2]
[329300165,1718225435116,-500.0,0.00029135,2]
[329300166,1718225435129,-500.0,0.00029135,2]
[329300167,1718225435140,-165.89375789,0.00029186,2]
[329300168,1718225435151,-300.0,0.0002919,2]
[329300169,1718225435162,-20100.0,0.000292,2]
[329300170,1718225435173,-280.97274355,0.00029233,15]
[329300171,1718225435185,-4909.12850681,0.00029239,15]
[329300172,1718225435197,-500.0,0.00029272,2]
[329300173,1718225435208,-500.0,0.00029272,2]
[329300174,1718225435219,-164.1885196,0.00029283,2]
[329300175,1718225435235,-280.97274355,0.00029344,15]
[329300176,1718225435249,-4909.12850681,0.00029349,15]
[329300177,1718225435262,-154.70928417,0.00029376,2]
[329300178,1718225435274,-469.41877694,0.00029398,2]
[329300179,1718225435285,-323.15510202,0.00029398,2]
[329300180,1718225435297,-469.41877692,0.00029399,2]
[329300181,1718225435309,-210.34297437,0.000294,2]
[329300182,1718225435322,-176.0576716,0.000294,2]
[329300183,1718225435344,-469.41877692,0.000294,2]
[329300184,1718225435357,-500.0,0.00029409,2]
[329300185,1718225435367,-152.84905972,0.00029431,2]
[329300186,1718225435380,-176.47864197,0.0002944,2]
[329300187,1718225435395,-280.97274355,0.00029456,15]
[329300188,1718225435415,-4909.12850681,0.00029459,15]
[329300189,1718225435441,-252.83554621,0.0002948,2]
[329300190,1718225435719,-151.0,0.00029489,2]
[329300191,1718225435733,-459.10133269,0.00029489,2]
[329300192,1718225435748,-17575.9690493,0.0002949,2]
[329300193,1718225435770,-4427.30363913,0.0002949,2]
[329300194,1718225435795,-626.85191041,0.0002949,2]
[329300195,1718225435833,-2542.68157995,0.0002949,2]
[329300196,1718225435851,-75692.82811031,0.0002949,2]
[329300254,1718225438485,-15650.46786706,0.0002949,2]
[329300274,1718225438637,-881.03946832,0.0002949,2]
[329300275,1718225438843,-36825.67330496,0.0002949,2]
[329300276,1718225439051,-1700.0,0.0002949,2]
[329300277,1718225439064,-4862.83818037,0.0002949,2]
[329300278,1718225439375,-196614.10316877,0.0002949,2]
[329300279,1718225439393,-6297.54627043,0.0002949,2]
[329300541,1718225443147,-2000.0,0.000288,2]
[329300543,1718225443160,-5064.20000001,0.0002949,2]
[329300798,1718225446830,-223.83,0.00028686,2]
[329300802,1718225446842,-1340.08,0.0002949,2]
[329300805,1718225446856,-475.24593431,0.0002949,2]
[329300835,1718225447914,-4435.79394895,0.0002949,2]
[329300849,1718225451203,-2013.69130441,0.00028023,2]
[329300850,1718225451214,-2154.15142817,0.0002949,2]
[329300851,1718225451230,-12868.44812467,0.0002949,2]
[329300852,1718225451457,-327.79167724,0.0002949,2]
[329300853,1718225451664,-1364.40339006,0.0002949,2]
[329300854,1718225451698,-2034.63468917,0.0002949,2]
[329300877,1718225472947,263.744,0.00015,2]
[329300888,1718226381739,998.98,0.00031805,30]
[329300898,1718226633910,-263.744,0.00015,2]
[329300929,1718226639452,-9576.39241567,0.00015,2]
[329300930,1718226639475,-500.0,0.00019178,2]
[329300931,1718226639494,-618.71,0.00019178,2]
[329300932,1718226639517,-500.0,0.00019178,2]
[329300933,1718226639541,-500.0,0.00019178,2]
[329300934,1718226639559,-127.3748662,0.00019178,2]
[329300935,1718226639574,-372.6251338,0.00019178,2]
[329300936,1718226639586,-500.0,0.00019178,2]
[329300937,1718226639608,-28.7124848,0.00019178,2]
[329300938,1718226639621,-471.2875152,0.00019178,2]
[329300939,1718226639634,-500.0,0.00019315,2]
[329300940,1718226639645,-313.75688692,0.00019315,2]
[329300941,1718226639668,-274.92749404,0.00019315,2]
[329300942,1718226639691,-225.07250596,0.00019315,2]
[329300943,1718226639708,-500.0,0.00019315,2]
[329300944,1718226639730,-500.0,0.00019315,2]
[329300945,1718226639744,-500.0,0.00019315,2]
[329300946,1718226639772,-500.0,0.00019452,2]
[329300947,1718226639788,-500.0,0.00019452,2]
[329300948,1718226639800,-500.0,0.00019452,2]
[329300949,1718226639832,-500.0,0.00019452,2]
[329300950,1718226639847,-500.0,0.00019452,2]
[329300951,1718226639874,-500.0,0.00019589,2]
[329300952,1718226639889,-319.29,0.00019589,2]
[329300953,1718226639902,-604.93,0.00019726,2]
[329300954,1718226639913,-2268.13,0.00019726,2]
[329300955,1718226639931,-331.67,0.00024384,2]
[329300956,1718226639947,-318.98,0.00024616,2]
[329300957,1718226639958,-153.16583406,0.00024703,2]
[329300958,1718226639981,-160.6958182,0.00024733,2]
[329300959,1718226639993,-154.57562758,0.00024872,2]
[329300960,1718226640010,-200.00170449,0.00025,2]
[329300961,1718226640022,-154.57562758,0.00025,2]
[329300962,1718226640034,-1277.7583517,0.00025,2]
[329300963,1718226640052,-706.94373209,0.00025186,2]
[329300964,1718226640081,-154.57562758,0.00025187,2]
[329300965,1718226640093,-3918.833754,0.00025554,2]
[329300966,1718226640104,-3489.588085,0.00025554,2]
[329300967,1718226640117,-1241.615941,0.00025554,2]
[329300968,1718226640140,-158.890655,0.00025554,2]
[329300969,1718226640154,-188.647897,0.00025554,2]
[329300970,1718226640176,-166.66666666,0.00025779,2]
[329300971,1718226640191,-1000.0,0.00025872,2]
[329300972,1718226640205,-2698.61949356,0.00025873,2]
[329300973,1718226640225,-1220.21426044,0.00025873,2]
[329300974,1718226640244,-3489.588085,0.00025873,2]
[329300975,1718226640275,-33.61869123,0.00025873,2]
[329300976,1718226640298,-1207.99724977,0.00025873,2]
[329300977,1718226640310,-158.890655,0.00025873,2]
[329300978,1718226640322,-3918.833754,0.00026192,2]
[329300979,1718226640337,-999.64862501,0.00026192,2]
[329300980,1718226640358,-241.96731599,0.00026192,2]
[329300981,1718226640388,-3489.588085,0.00026192,2]
[329300982,1718226640415,-158.890655,0.00026192,2]
[329300985,1718226640438,-188.647897,0.00026192,2]
[329300987,1718226640451,-584.72754414,0.00026253,2]
[329300988,1718226640463,-250.0,0.00026345,2]
[329300990,1718226640476,-154.57562758,0.00026472,2]
[329300991,1718226640488,-73.66158449,0.00026492,30]
[329300995,1718226640527,-115.69841551,0.00026492,30]
[329300997,1718226640545,-186.52,0.00026498,2]
[329300999,1718226640557,-197.78158449,0.00026502,2]
[329301001,1718226640571,-52.21841551,0.00026502,2]
[329301002,1718226640586,-3918.833754,0.00026512,2]
[329301004,1718226640598,-1241.615941,0.00026512,2]
[329301005,1718226640613,-3489.588085,0.00026512,2]
[329301007,1718226640627,-158.890655,0.00026512,2]
[329301009,1718226640642,-704.52,0.00026521,2]
[329301011,1718226640655,-167.79,0.00026608,2]
[329301013,1718226640691,-154.57562758,0.00026612,2]
[329301014,1718226640712,-172.01,0.00026717,2]
[329301015,1718226640727,-172.01,0.00026724,2]